[Event "Early-Titled-Tuesday-Blitz-January-30-2024"]
[Site "Chess.com"]
[Date "2024.01.30"]
[Round "7"]
[White "FGHSMN"]
[Black "Baku_Boulevard"]
[Result "1-0"]
[WhiteElo "2911"]
[BlackElo "3048"]
[TimeControl "180+1"]
[EndTime "9:21:01 PST"]
[Termination "FGHSMN won by resignation"]

1. b3 {[%clk 0:03:00.9]} 1... e5 {[%clk 0:02:58]} 2. Bb2 {[%clk 0:03:01.5]} 2...
Nc6 {[%clk 0:02:58.4]} 3. c4 {[%clk 0:03:02]} 3... Nf6 {[%clk 0:02:56.6]} 4. e3
{[%clk 0:03:02.5]} 4... d5 {[%clk 0:02:57]} 5. cxd5 {[%clk 0:03:03.3]} 5... Nxd5
{[%clk 0:02:57.5]} 6. a3 {[%clk 0:03:04]} 6... g6 {[%clk 0:02:56]} 7. d3 {[%clk
0:03:00]} 7... Bg7 {[%clk 0:02:56]} 8. Nd2 {[%clk 0:03:00.6]} 8... O-O {[%clk
0:02:56.2]} 9. Be2 {[%clk 0:03:01]} 9... f5 {[%clk 0:02:49.4]} 10. Qc2 {[%clk
0:02:59.4]} 10... f4 {[%clk 0:02:43.2]} 11. e4 {[%clk 0:02:59.3]} 11... Nde7
{[%clk 0:02:42]} 12. Ngf3 {[%clk 0:02:58.6]} 12... h6 {[%clk 0:02:40.7]} 13. Nc4
{[%clk 0:02:53.8]} 13... Nd4 {[%clk 0:02:40.9]} 14. Nxd4 {[%clk 0:02:42.4]}
14... exd4 {[%clk 0:02:41.8]} 15. b4 {[%clk 0:02:35.3]} 15... Kh7 {[%clk
0:02:40.6]} 16. Bf3 {[%clk 0:02:29]} 16... Be6 {[%clk 0:02:39.7]} 17. Rc1 {[%clk
0:02:23.4]} 17... Rc8 {[%clk 0:02:38.9]} 18. b5 {[%clk 0:02:15.8]} 18... c6
{[%clk 0:02:38.3]} 19. Qa4 {[%clk 0:02:06.3]} 19... cxb5 {[%clk 0:02:35.1]} 20.
Qxb5 {[%clk 0:02:07.2]} 20... a6 {[%clk 0:02:35.1]} 21. Qb4 {[%clk 0:01:52.6]}
21... Nc6 {[%clk 0:02:32.2]} 22. Qd6 {[%clk 0:01:33.2]} 22... b5 {[%clk
0:01:37.5]} 23. Qxd8 {[%clk 0:01:31.1]} 23... Rcxd8 {[%clk 0:01:33.2]} 24. Nd2
{[%clk 0:01:29]} 24... Ne5 {[%clk 0:01:33.5]} 25. Ke2 {[%clk 0:01:23.9]} 25...
Rd7 {[%clk 0:01:26.6]} 26. Rc5 {[%clk 0:01:18.1]} 26... Rb8 {[%clk 0:01:26.5]}
27. Rhc1 {[%clk 0:01:16.8]} 27... b4 {[%clk 0:01:25.4]} 28. Rc7 {[%clk
0:01:09.2]} 28... a5 {[%clk 0:01:13.7]} 29. Rxd7 {[%clk 0:01:07]} 29... Bxd7
{[%clk 0:01:12.5]} 30. Rc7 {[%clk 0:00:43.8]} 30... Bb5 {[%clk 0:01:09.6]} 31.
Bxd4 {[%clk 0:00:39.9]} 31... Bxd3+ {[%clk 0:00:57.7]} 32. Kd1 {[%clk
0:00:39.7]} 32... Re8 {[%clk 0:00:55.6]} 33. axb4 {[%clk 0:00:37.5]} 33... axb4
{[%clk 0:00:55.9]} 34. Be2 {[%clk 0:00:32.9]} 34... Bxe2+ {[%clk 0:00:46]} 35.
Kxe2 {[%clk 0:00:33.8]} 35... Kg8 {[%clk 0:00:46.6]} 36. Rxg7+ {[%clk
0:00:19.4]} 36... Kxg7 {[%clk 0:00:45.9]} 37. Nf3 {[%clk 0:00:20.3]} 37... b3
{[%clk 0:00:24.5]} 38. Nxe5 {[%clk 0:00:19.7]} 38... Rd8 {[%clk 0:00:24.9]} 39.
Bb2 {[%clk 0:00:19.2]} 39... Rc8 {[%clk 0:00:23]} 40. Nc4+ {[%clk 0:00:19.5]}
40... Kf8 {[%clk 0:00:22.6]} 41. Kd3 {[%clk 0:00:19.9]} 41... g5 {[%clk
0:00:19.9]} 42. Kc3 {[%clk 0:00:19.2]} 42... Rd8 {[%clk 0:00:18.3]} 43. Kxb3
{[%clk 0:00:18]} 43... Rd1 {[%clk 0:00:18.4]} 44. Kc2 {[%clk 0:00:13.4]} 44...
Rh1 {[%clk 0:00:18.3]} 45. h3 {[%clk 0:00:09.6]} 45... Rg1 {[%clk 0:00:18.8]}
46. Kd2 {[%clk 0:00:08.7]} 46... Rxg2 {[%clk 0:00:19.2]} 47. Ke2 {[%clk
0:00:09.1]} 47... Rh2 {[%clk 0:00:19.8]} 48. Ba3+ {[%clk 0:00:09.1]} 48... Kf7
{[%clk 0:00:19.4]} 49. Ne5+ {[%clk 0:00:09.5]} 49... Ke6 {[%clk 0:00:18.9]} 50.
Nf3 {[%clk 0:00:08.1]} 50... Rxh3 {[%clk 0:00:18.4]} 51. Bb2 {[%clk 0:00:06.9]}
51... g4 {[%clk 0:00:18.3]} 52. Nd4+ {[%clk 0:00:05.6]} 52... Kf7 {[%clk
0:00:18.3]} 53. Bc1 {[%clk 0:00:04.4]} 53... f3+ {[%clk 0:00:17.3]} 54. Ke3
{[%clk 0:00:05.3]} 54... Rh1 {[%clk 0:00:17.7]} 55. Bd2 {[%clk 0:00:04.9]} 55...
h5 {[%clk 0:00:18.4]} 56. Kf4 {[%clk 0:00:04.7]} 56... Rg1 {[%clk 0:00:16.6]}
57. Nf5 {[%clk 0:00:05.1]} 57... Ke6 {[%clk 0:00:13.8]} 58. Be3 {[%clk
0:00:05.6]} 58... Rg2 {[%clk 0:00:08.6]} 59. Ng7+ {[%clk 0:00:05.5]} 59... Kf7
{[%clk 0:00:06.2]} 60. Nxh5 {[%clk 0:00:06.4]} 60... Rg1 {[%clk 0:00:05.5]} 61.
Ng3 {[%clk 0:00:06.9]} 61... Rb1 {[%clk 0:00:02.4]} 62. Kxg4 {[%clk 0:00:07.5]}
62... Ke6 {[%clk 0:00:02.9]} 63. Kxf3 {[%clk 0:00:08.4]} 63... Rb8 {[%clk
0:00:03.6]} 64. Ke2 {[%clk 0:00:08.2]} 64... Rf8 {[%clk 0:00:04.5]} 65. f4
{[%clk 0:00:08.4]} 65... Kf7 {[%clk 0:00:05.4]} 66. Kf3 {[%clk 0:00:09.3]} 66...
Rg8 {[%clk 0:00:05.7]} 67. e5 {[%clk 0:00:09.7]} 67... Ra8 {[%clk 0:00:06.6]}
68. f5 {[%clk 0:00:09.6]} 68... Ra5 {[%clk 0:00:06.6]} 69. Kf4 {[%clk
0:00:09.6]} 69... Rb5 {[%clk 0:00:07]} 70. Ne4 {[%clk 0:00:10]} 70... Ra5 {[%clk
0:00:07.7]} 71. e6+ {[%clk 0:00:10.6]} 71... Ke7 {[%clk 0:00:08.3]} 72. Bc5+
{[%clk 0:00:11.3]} 72... Kd8 {[%clk 0:00:08.9]} 73. f6 {[%clk 0:00:11.9]} 73...
Ra6 {[%clk 0:00:08.1]} 74. f7 {[%clk 0:00:11.9]} 74... Rxe6 {[%clk 0:00:08.6]}
75. f8=Q+ {[%clk 0:00:12.3]} 75... Re8 {[%clk 0:00:09.4]} 76. Qd6+ {[%clk
0:00:12.4]} 76... Kc8 {[%clk 0:00:10]} 77. Qc6+ {[%clk 0:00:13]} 77... Kd8
{[%clk 0:00:10.6]} 78. Bb6+ {[%clk 0:00:13.1]} 78... Ke7 {[%clk 0:00:11]} 79.
Qf6+ {[%clk 0:00:13.3]} 79... Kd7 {[%clk 0:00:11.3]} 80. Qd6+ {[%clk 0:00:14.2]}
1-0

[Event "Early-Titled-Tuesday-Blitz-January-30-2024"]
[Site "Chess.com"]
[Date "2024.01.30"]
[Round "7"]
[White "FairChess_on_YouTube"]
[Black "ViIIagra"]
[Result "0-1"]
[WhiteElo "3088"]
[BlackElo "2981"]
[TimeControl "180+1"]
[EndTime "9:21:08 PST"]
[Termination "ViIIagra won on time"]

1. d4 {[%clk 0:03:00.9]} 1... Nf6 {[%clk 0:03:00.2]} 2. c4 {[%clk 0:03:00.2]}
2... g6 {[%clk 0:03:00.8]} 3. Nc3 {[%clk 0:02:57.7]} 3... Bg7 {[%clk 0:03:01.4]}
4. e4 {[%clk 0:02:57.9]} 4... d6 {[%clk 0:03:02]} 5. h3 {[%clk 0:02:57.9]} 5...
Nbd7 {[%clk 0:03:00.3]} 6. Be3 {[%clk 0:02:57.5]} 6... e5 {[%clk 0:02:56.2]} 7.
d5 {[%clk 0:02:57.4]} 7... Nc5 {[%clk 0:02:50.6]} 8. Bd3 {[%clk 0:02:53.5]} 8...
O-O {[%clk 0:02:11.8]} 9. Bc2 {[%clk 0:02:53.2]} 9... c6 {[%clk 0:02:10.3]} 10.
Nge2 {[%clk 0:02:50.9]} 10... cxd5 {[%clk 0:01:45.9]} 11. cxd5 {[%clk 0:02:51]}
11... Bd7 {[%clk 0:01:45.9]} 12. b4 {[%clk 0:02:37.6]} 12... Na6 {[%clk
0:01:45.8]} 13. a3 {[%clk 0:02:37.7]} 13... Nc7 {[%clk 0:01:46.3]} 14. O-O
{[%clk 0:02:36.7]} 14... Nb5 {[%clk 0:01:46.8]} 15. Qd2 {[%clk 0:02:14.7]} 15...
Nh5 {[%clk 0:01:28]} 16. Nxb5 {[%clk 0:01:56]} 16... Bxb5 {[%clk 0:01:28]} 17.
Rfc1 {[%clk 0:01:56]} 17... Nf4 {[%clk 0:01:20.5]} 18. Nxf4 {[%clk 0:01:53.8]}
18... exf4 {[%clk 0:01:20.6]} 19. Bxf4 {[%clk 0:01:54.7]} 19... Bxa1 {[%clk
0:01:15.5]} 20. Rxa1 {[%clk 0:01:55.6]} 20... Rc8 {[%clk 0:01:16.1]} 21. Bb3
{[%clk 0:01:39.7]} 21... Qf6 {[%clk 0:01:12.5]} 22. Re1 {[%clk 0:01:39.2]} 22...
Rfe8 {[%clk 0:01:09.5]} 23. a4 {[%clk 0:01:15.1]} 23... Bc4 {[%clk 0:01:04.7]}
24. Bd1 {[%clk 0:01:14.7]} 24... Bxd5 {[%clk 0:00:54.7]} 25. Bf3 {[%clk
0:01:05.7]} 25... Qc3 {[%clk 0:00:40.2]} 26. Qxc3 {[%clk 0:00:54.7]} 26... Rxc3
{[%clk 0:00:41.1]} 27. Bxd6 {[%clk 0:00:55.2]} 27... f5 {[%clk 0:00:30.5]} 28.
Rd1 {[%clk 0:00:32.8]} 28... Bxe4 {[%clk 0:00:29.2]} 29. Bxe4 {[%clk 0:00:23.2]}
29... Rxe4 {[%clk 0:00:30.1]} 30. g3 {[%clk 0:00:21.3]} 30... b6 {[%clk
0:00:27.8]} 31. h4 {[%clk 0:00:19.3]} 31... Rcc4 {[%clk 0:00:28]} 32. Bb8 {[%clk
0:00:15.4]} 32... a6 {[%clk 0:00:23.4]} 33. b5 {[%clk 0:00:12.2]} 33... axb5
{[%clk 0:00:23.4]} 34. axb5 {[%clk 0:00:13.1]} 34... Rc5 {[%clk 0:00:19]} 35.
Rd7 {[%clk 0:00:09.6]} 35... Rxb5 {[%clk 0:00:18]} 36. Bf4 {[%clk 0:00:09]}
36... Rxf4 {[%clk 0:00:09]} 37. gxf4 {[%clk 0:00:09]} 37... Rb4 {[%clk
0:00:08.6]} 38. h5 {[%clk 0:00:08.9]} 38... gxh5 {[%clk 0:00:06.9]} 39. Rb7
{[%clk 0:00:05.9]} 39... Rb3 {[%clk 0:00:05.1]} 40. Kg2 {[%clk 0:00:05.2]} 40...
h4 {[%clk 0:00:05.7]} 41. Rd7 {[%clk 0:00:04.6]} 41... b5 {[%clk 0:00:05.3]} 42.
Rd5 {[%clk 0:00:04.9]} 42... Kg7 {[%clk 0:00:04.3]} 43. Rxf5 {[%clk 0:00:05.1]}
43... Kg6 {[%clk 0:00:05.1]} 44. Rg5+ {[%clk 0:00:05.6]} 44... Kh6 {[%clk
0:00:05.7]} 45. Rc5 {[%clk 0:00:04.3]} 45... b4 {[%clk 0:00:05.9]} 46. Rb5
{[%clk 0:00:04.7]} 46... Kg6 {[%clk 0:00:06.1]} 47. Rg5+ {[%clk 0:00:04.8]}
47... Kf6 {[%clk 0:00:06.5]} 48. Rh5 {[%clk 0:00:05.3]} 48... h3+ {[%clk
0:00:06.5]} 49. Kh2 {[%clk 0:00:05]} 49... Kg6 {[%clk 0:00:07]} 50. Rg5+ {[%clk
0:00:04.9]} 50... Kh6 {[%clk 0:00:07.7]} 51. Rb5 {[%clk 0:00:05.4]} 51... Kg6
{[%clk 0:00:07.3]} 52. Rg5+ {[%clk 0:00:05.5]} 52... Kf6 {[%clk 0:00:07.1]} 53.
Rb5 {[%clk 0:00:06.2]} 53... h6 {[%clk 0:00:07.4]} 54. Rh5 {[%clk 0:00:05.3]}
54... Kg6 {[%clk 0:00:07.4]} 55. Rb5 {[%clk 0:00:05.2]} 55... Kg7 {[%clk
0:00:07.8]} 56. Rb7+ {[%clk 0:00:05.1]} 56... Kf6 {[%clk 0:00:08.2]} 57. Rb5
{[%clk 0:00:06]} 57... Kg6 {[%clk 0:00:04.8]} 58. Rb6+ {[%clk 0:00:02.9]} 58...
Kf5 {[%clk 0:00:05.2]} 59. Rxh6 {[%clk 0:00:03.5]} 59... Kxf4 {[%clk 0:00:05.4]}
60. Rb6 {[%clk 0:00:03.9]} 60... Ke4 {[%clk 0:00:05.6]} 61. Rb8 {[%clk
0:00:03.5]} 61... Kd4 {[%clk 0:00:05.9]} 62. f4 {[%clk 0:00:03.4]} 62... Ke4
{[%clk 0:00:05.7]} 63. Rf8 {[%clk 0:00:03.2]} 63... Rf3 {[%clk 0:00:06]} 64. f5
{[%clk 0:00:02.3]} 64... Rxf5 {[%clk 0:00:03.8]} 65. Rb8 {[%clk 0:00:02.8]}
65... Rf2+ {[%clk 0:00:04.5]} 66. Kxh3 {[%clk 0:00:02.7]} 66... Rb2 {[%clk
0:00:05.4]} 67. Kg3 {[%clk 0:00:03.3]} 67... Ke3 {[%clk 0:00:05.1]} 68. Re8+
{[%clk 0:00:03]} 68... Kd3 {[%clk 0:00:05.6]} 69. Kf3 {[%clk 0:00:03.9]} 69...
b3 {[%clk 0:00:05.9]} 70. Rd8+ {[%clk 0:00:04.2]} 70... Kc2 {[%clk 0:00:06]} 71.
Ke2 {[%clk 0:00:04.8]} 71... Kb1+ {[%clk 0:00:05.7]} 72. Kd3 {[%clk 0:00:04.2]}
72... Rc2 {[%clk 0:00:06.3]} 73. Rb8 {[%clk 0:00:03.8]} 73... b2 {[%clk
0:00:06.9]} 74. Rb7 {[%clk 0:00:03.8]} 74... Rc1 {[%clk 0:00:07.2]} 75. Kd2
{[%clk 0:00:03.5]} 75... Rc5 {[%clk 0:00:07]} 76. Ra7 {[%clk 0:00:02.1]} 76...
Rd5+ {[%clk 0:00:05.8]} 77. Ke2 {[%clk 0:00:02.5]} 77... Kc2 {[%clk 0:00:05.5]}
78. Rc7+ {[%clk 0:00:02.9]} 78... Kb3 {[%clk 0:00:06]} 79. Rb7+ {[%clk
0:00:03.5]} 79... Kc3 {[%clk 0:00:06.5]} 80. Rc7+ {[%clk 0:00:04.1]} 80... Kb4
{[%clk 0:00:06.4]} 81. Rb7+ {[%clk 0:00:03.5]} 81... Rb5 {[%clk 0:00:06.8]} 82.
Rb6 {[%clk 0:00:03.2]} 82... Rxb6 {[%clk 0:00:06.6]} 0-1

[Event "Early-Titled-Tuesday-Blitz-January-30-2024"]
[Site "Chess.com"]
[Date "2024.01.30"]
[Round "7"]
[White "KuzubovYuriy"]
[Black "FormerProdigy"]
[Result "1-0"]
[WhiteElo "2921"]
[BlackElo "3024"]
[TimeControl "180+1"]
[EndTime "9:21:19 PST"]
[Termination "KuzubovYuriy won by resignation"]

1. d4 {[%clk 0:03:00.9]} 1... Nf6 {[%clk 0:03:00.3]} 2. Nf3 {[%clk 0:03:01]}
2... e6 {[%clk 0:03:00.8]} 3. c4 {[%clk 0:03:00.6]} 3... b6 {[%clk 0:03:00.4]}
4. g3 {[%clk 0:03:00.7]} 4... Ba6 {[%clk 0:03:00.8]} 5. Qc2 {[%clk 0:03:01]}
5... c5 {[%clk 0:02:58.9]} 6. d5 {[%clk 0:03:01.3]} 6... exd5 {[%clk 0:02:58.1]}
7. cxd5 {[%clk 0:03:01]} 7... Bb7 {[%clk 0:02:58.7]} 8. Bg2 {[%clk 0:03:01.7]}
8... Nxd5 {[%clk 0:02:57.5]} 9. O-O {[%clk 0:03:02.4]} 9... Nc6 {[%clk 0:02:58]}
10. Rd1 {[%clk 0:03:02.7]} 10... Be7 {[%clk 0:02:56.7]} 11. Qa4 {[%clk
0:03:03.3]} 11... Nf6 {[%clk 0:02:48.3]} 12. e4 {[%clk 0:03:03.1]} 12... O-O
{[%clk 0:02:47.3]} 13. e5 {[%clk 0:03:03.7]} 13... Ne8 {[%clk 0:02:47.2]} 14.
Nc3 {[%clk 0:03:04.3]} 14... Nc7 {[%clk 0:02:41.2]} 15. h4 {[%clk 0:03:03.7]}
15... Re8 {[%clk 0:02:24.5]} 16. h5 {[%clk 0:03:00.8]} 16... h6 {[%clk 0:02:23]}
17. Qg4 {[%clk 0:02:45.7]} 17... Kh8 {[%clk 0:02:17.5]} 18. Rxd7 {[%clk
0:02:32.2]} 18... Bc8 {[%clk 0:02:08.6]} 19. Rxd8 {[%clk 0:02:12.5]} 19... Bxg4
{[%clk 0:02:09.5]} 20. Rxa8 {[%clk 0:02:12.7]} 20... Rxa8 {[%clk 0:02:03.5]} 21.
Ne1 {[%clk 0:01:34.5]} 21... Bd7 {[%clk 0:01:58.3]} 22. Bf4 {[%clk 0:01:32.6]}
22... Rd8 {[%clk 0:01:51.4]} 23. Nc2 {[%clk 0:01:17.4]} 23... Ne6 {[%clk
0:01:47.9]} 24. Nd5 {[%clk 0:01:10.9]} 24... Nxf4 {[%clk 0:01:46.4]} 25. gxf4
{[%clk 0:01:09.8]} 25... Bg4 {[%clk 0:01:44.9]} 26. Nde3 {[%clk 0:01:04.2]}
26... Bd7 {[%clk 0:01:44.6]} 27. Nd5 {[%clk 0:00:57.8]} 27... Bf8 {[%clk
0:01:40.8]} 28. Nce3 {[%clk 0:00:46.4]} 28... Nd4 {[%clk 0:01:41.2]} 29. Be4
{[%clk 0:00:40]} 29... Bc6 {[%clk 0:01:32]} 30. Kg2 {[%clk 0:00:38.7]} 30... b5
{[%clk 0:01:17.7]} 31. b3 {[%clk 0:00:36]} 31... a5 {[%clk 0:00:55.3]} 32. Nc3
{[%clk 0:00:22.9]} 32... Be8 {[%clk 0:00:40.7]} 33. Rd1 {[%clk 0:00:20.9]} 33...
f6 {[%clk 0:00:32.9]} 34. Bg6 {[%clk 0:00:20.8]} 34... Bc6+ {[%clk 0:00:30.5]}
35. Be4 {[%clk 0:00:21.2]} 35... Be8 {[%clk 0:00:30.5]} 36. Bg6 {[%clk
0:00:21.6]} 36... Bc6+ {[%clk 0:00:30.6]} 37. Be4 {[%clk 0:00:21.8]} 37... b4
{[%clk 0:00:25.5]} 38. Bxc6 {[%clk 0:00:21]} 38... bxc3 {[%clk 0:00:26.2]} 39.
Be4 {[%clk 0:00:21]} 39... Be7 {[%clk 0:00:13]} 40. Bg6 {[%clk 0:00:20.9]} 40...
fxe5 {[%clk 0:00:12.8]} 41. fxe5 {[%clk 0:00:21.1]} 41... Bg5 {[%clk 0:00:13.7]}
42. Nc2 {[%clk 0:00:19.2]} 42... Kg8 {[%clk 0:00:13]} 43. Rd3 {[%clk 0:00:16.1]}
43... Nxc2 {[%clk 0:00:11.2]} 44. Rxd8+ {[%clk 0:00:16.3]} 44... Bxd8 {[%clk
0:00:12.1]} 45. Bxc2 {[%clk 0:00:16.7]} 45... Bg5 {[%clk 0:00:10.3]} 46. Kg3
{[%clk 0:00:16.9]} 46... Bd2 {[%clk 0:00:10.1]} 47. Kg4 {[%clk 0:00:16.4]} 47...
Kf7 {[%clk 0:00:10.6]} 48. Kf5 {[%clk 0:00:16.9]} 48... Be1 {[%clk 0:00:10.4]}
49. f3 {[%clk 0:00:17.1]} 49... Bg3 {[%clk 0:00:10.1]} 50. f4 {[%clk 0:00:17.5]}
50... Ke7 {[%clk 0:00:10.2]} 51. Kg4 {[%clk 0:00:17]} 51... Bh2 {[%clk
0:00:10.1]} 52. Bd3 {[%clk 0:00:17]} 52... Kf7 {[%clk 0:00:10.3]} 53. Bc4+
{[%clk 0:00:17.3]} 53... Ke7 {[%clk 0:00:10.6]} 54. Bd3 {[%clk 0:00:18.2]} 54...
Kf7 {[%clk 0:00:10.8]} 55. Kf5 {[%clk 0:00:18.3]} 55... Bg3 {[%clk 0:00:10.7]}
56. Ke4 {[%clk 0:00:17.8]} 56... Ke7 {[%clk 0:00:10.4]} 57. f5 {[%clk
0:00:17.6]} 57... Bh2 {[%clk 0:00:10]} 58. Bc2 {[%clk 0:00:17.9]} 58... Bg3
{[%clk 0:00:10.2]} 59. Bd3 {[%clk 0:00:17.4]} 59... Bh2 {[%clk 0:00:10.3]} 60.
Bc2 {[%clk 0:00:17.3]} 60... Bg3 {[%clk 0:00:10.9]} 61. Kd5 {[%clk 0:00:16.9]}
61... Bh2 {[%clk 0:00:10.9]} 62. e6 {[%clk 0:00:16.2]} 62... Bf4 {[%clk
0:00:07.9]} 63. Kxc5 {[%clk 0:00:16.3]} 63... Bd6+ {[%clk 0:00:08.5]} 64. Kb5
{[%clk 0:00:16]} 64... Bb4 {[%clk 0:00:08.7]} 65. a3 {[%clk 0:00:16.5]} 65...
Bxa3 {[%clk 0:00:08.5]} 66. Kxa5 {[%clk 0:00:17.3]} 66... Kd6 {[%clk 0:00:07.6]}
67. b4 {[%clk 0:00:17.5]} 67... Bc1 {[%clk 0:00:08]} 68. b5 {[%clk 0:00:17.7]}
68... Be3 {[%clk 0:00:06.6]} 69. Kb4 {[%clk 0:00:18]} 69... Bb6 {[%clk
0:00:06.2]} 70. Kxc3 {[%clk 0:00:18.2]} 70... Ke7 {[%clk 0:00:05.9]} 71. Kc4
{[%clk 0:00:18.6]} 71... Kd6 {[%clk 0:00:06.4]} 72. Kd3 {[%clk 0:00:18.8]} 72...
Bc5 {[%clk 0:00:06.2]} 73. Ke4 {[%clk 0:00:19]} 73... Ke7 {[%clk 0:00:05.6]} 74.
Kd5 {[%clk 0:00:19]} 74... Be3 {[%clk 0:00:05.1]} 75. Kc6 {[%clk 0:00:19.5]}
75... Kd8 {[%clk 0:00:03.3]} 76. Be4 {[%clk 0:00:19]} 76... Bf2 {[%clk 0:00:03]}
77. b6 {[%clk 0:00:18.7]} 77... Be3 {[%clk 0:00:01.6]} 78. Bd5 {[%clk
0:00:18.5]} 78... Bf2 {[%clk 0:00:01.9]} 79. Bc4 {[%clk 0:00:18.8]} 79... Be3
{[%clk 0:00:02.3]} 80. Bb5 {[%clk 0:00:18.4]} 80... Bf2 {[%clk 0:00:02.6]} 81.
Kd6 {[%clk 0:00:18.7]} 81... Bg3+ {[%clk 0:00:02.1]} 82. Kd5 {[%clk 0:00:19]}
82... Bf2 {[%clk 0:00:02.4]} 83. b7 {[%clk 0:00:18.2]} 83... Bg3 {[%clk
0:00:01.8]} 84. f6 {[%clk 0:00:18]} 84... gxf6 {[%clk 0:00:01.8]} 85. Ke4 {[%clk
0:00:18.8]} 85... Ke7 {[%clk 0:00:02.1]} 86. Kf5 {[%clk 0:00:19.1]} 86... Bb8
{[%clk 0:00:02.4]} 87. Bd7 {[%clk 0:00:19.1]} 87... Bc7 {[%clk 0:00:02.7]} 88.
Bb5 {[%clk 0:00:19.2]} 88... Bb8 {[%clk 0:00:03.2]} 89. Be2 {[%clk 0:00:19.7]}
89... Bc7 {[%clk 0:00:03.7]} 90. Bg4 {[%clk 0:00:20]} 90... Bb8 {[%clk
0:00:04.2]} 91. Kg6 {[%clk 0:00:20.3]} 91... Bf4 {[%clk 0:00:04.8]} 92. Kg7
{[%clk 0:00:20.6]} 92... Be5 {[%clk 0:00:04.1]} 93. Kxh6 {[%clk 0:00:20.6]}
93... f5 {[%clk 0:00:04.6]} 94. Bxf5 {[%clk 0:00:21]} 94... Kf6 {[%clk
0:00:05.5]} 95. Bh3 {[%clk 0:00:21.2]} 95... Bf4+ {[%clk 0:00:05.6]} 96. Kh7
{[%clk 0:00:21.7]} 96... Bb8 {[%clk 0:00:05.4]} 97. Kg8 {[%clk 0:00:22.1]} 97...
Bd6 {[%clk 0:00:05.6]} 98. h6 {[%clk 0:00:22.5]} 98... Be5 {[%clk 0:00:05.5]}
99. h7 {[%clk 0:00:23.2]} 1-0